Cogmind - Beta 17 @@@ ROGUE MODE // 2026.07.18 @ 11:39:09 Player: Smol John Result: Destroyed by L-31 Rogue with Katana Performance ------------- Evolutions (1) 500 Regions Visited (6) 1200 Robots Destroyed (43) 215 Value Destroyed (1207) 1207 Prototype IDs (23) 460 Alien Tech Used (0) 0 Bonus (300) 300 TOTAL SCORE: 3882 Bonus ------- Aligned with FarCom 300 Cogmind --------- Core Integrity 0/400 Matter 300/300 Energy 99/100 System Corruption 4% Temperature Cool (0) Movement Core (50) Location -8/Mines Parts ------- > --- POWER (1) -------- (None) > --- PROPULSION (3) --- (None) > --- UTILITY (3) ------ Structural Scanner Machine Analyzer > --- WEAPON (2) ------- Katana > --- INVENTORY (5) ---- Light Nuclear Core Longsword +1 Peak State ------------ > --- POWER ------------ Ion Engine > --- PROPULSION ------- Light Treads Aluminum Leg Wheel > --- UTILITY ---------- Structural Scanner Machine Analyzer > --- WEAPON ----------- Katana Longsword +1 > --- INVENTORY -------- Light Nuclear Core [Rating: 19] Favorites ----------- Power Light Ion Engine Engine Light Ion Engine Power Core Light Nuclear Core Propulsion Aluminum Leg Treads Light Treads Leg Aluminum Leg Wheel Compact Wheel Flight Unit Flight Unit Utility Small Storage Unit Device Weight Redist. System Storage Small Storage Unit Processor Machine Analyzer Protection Hardened Light Armor Plating Weapon Light Assault Rifle Energy Gun Particle Gun Ballistic Gun Light Assault Rifle Launcher Grenade Launcher Slashing Weapon Longsword +1 Build | -11 -10 -10 -9 -9 -9 -8 ------- Run | Yrd Mat Min Mat Min Exi Min Slots Evolved 2 | . . . 2 . . . Power . | . . . . . . . Propulsion 1 | . . . 1 . . . Utility 1 | . . . 1 . . . Weapon . | . . . . . . . Parts Attached 30 | 6 2 5 3 2 . 12 Power 3 | 1 . 1 . . . 1 Engine 2 | 1 . . . . . 1 Core 1 | . . 1 . . . . Reactor . | . . . . . . . Propulsion 13 | 2 1 2 2 2 . 4 Treads 2 | . . . . 2 . . Leg 6 | . 1 2 2 . . 1 Wheel 3 | 2 . . . . . 1 Hover . | . . . . . . . Flight 2 | . . . . . . 2 Utility 6 | 1 1 . 1 . . 3 Device 3 | . 1 . . . . 2 Storage 1 | 1 . . . . . . Processor 1 | . . . . . . 1 Hackware . | . . . . . . . Protection 1 | . . . 1 . . . Artifact . | . . . . . . . Weapon 8 | 2 . 2 . . . 4 Energy Gun 2 | 1 . 1 . . . . Energy Cannon . | . . . . . . . Ballistic Gun 3 | 1 . 1 . . . 1 Ballistic Cannon . | . . . . . . . Launcher 1 | . . . . . . 1 Special Weapon . | . . . . . . . Impact Weapon . | . . . . . . . Slashing Weapon 2 | . . . . . . 2 Piercing Weapon . | . . . . . . . Special Melee Weapon . | . . . . . . . Unidentified Prototypes . | . . . . . . . Parts Lost 20 | . 1 1 . 3 . 15 Power 3 | . . . . . . 3 Propulsion 10 | . 1 . . 3 . 6 Utility 2 | . . . . . . 2 Weapon 5 | . . 1 . . . 4 Highest Loss Streak 6 | . 1 1 . 3 . 6 To Critical Strikes . | . . . . . . . Average Backups 6 | 3 7 7 7 7 8 4 Power 1 | . 1 1 2 2 2 1 Propulsion 3 | 2 4 4 3 3 3 1 Utility . | . . . . . . . Weapon 1 | . 1 1 2 2 2 1 Tool/Special . | . . . . . . . Unused Backups 3 | . 2 . . . . 1 Power 1 | . . . . . . 1 Propulsion 1 | . 1 . . . . . Utility 1 | . 1 . . . . . Weapon . | . . . . . . . Tool/Special . | . . . . . . . Average Slot Usage (%) 88 | . 89 100 95 93 95 67 Engine 8 | . 13 9 8 11 11 1 Core 3 | . . 4 2 . . 9 Treads 7 | . . . . 4 22 11 Leg 10 | . 1 18 30 22 7 1 Wheel 7 | . 26 9 . . . 3 Flight 2 | . . . . . . 11 Device 10 | . 5 14 11 11 11 9 Storage 9 | . 14 14 11 11 11 . Protection 4 | . . . 8 11 11 . Energy Gun 9 | . 14 14 11 11 11 . Ballistic Gun 10 | . 13 14 11 11 11 4 Slashing Weapon 1 | . . . . . . 6 Peak Build Rating 19 | 6 8 11 14 13 13 19 Average Rating 10 | 4 6 8 12 12 12 12 On Entrance 9 | . 6 8 11 13 12 13 Avg Prop Armor Cover (%) 10 | . 10 10 . . 5 12 Naked Turns . | . . . . . . . Heaviest Build 20 | 11 11 15 20 18 18 10 Greatest Support 46 | 32 38 26 36 46 46 20 Greatest Overweight (x) 2 | . . . . 1 . 2 Average Overweight (x) . | . . . . . . . Largest Inventory Capacity 8 | 8 8 8 8 8 8 8 Average Capacity 7 | 6 8 8 8 8 8 5 Most Carried 8 | 6 8 8 8 8 8 8 Average Carried 6 | 3 7 7 7 7 7 4 Final Capacity 8 | 8 8 8 8 8 8 5 Final Carried 8 | 6 7 8 8 8 8 2 Class Distribution -------------------- 60% | Mutant 31% | Scavenger-Mutant 4% | Scavenger-Skirmisher Dominant Class ---------------- Mutant | -10/Materials Mutant | -10/Mines Scavenger-Mutant | -9/Materials Scavenger-Mutant | -9/Mines Mutant | -9/Exiles Scavenger-Mutant | -8/Mines Resources | -11 -10 -10 -9 -9 -9 -8 ----------- Run | Yrd Mat Min Mat Min Exi Min Matter Collected 883 | 171 180 63 109 99 . 261 Remotely . | . . . . . . . Salvage Created 1370 | . 365 132 385 152 . 336 Parts 83 | . 28 13 15 11 . 16 Haulers Intercepted 1 | . 1 . . . . . Recyclers Shooed 1 | . . . . 1 . . Parts Field Recycled . | . . . . . . . Retrieved Matter . | . . . . . . . Parts Self-Destructed . | . . . . . . . Prevented . | . . . . . . . Parts Restored . | . . . . . . . Kills | -11 -10 -10 -9 -9 -9 -8 ------- Run | Yrd Mat Min Mat Min Exi Min Combat Hostiles Destroyed 34 | . 8 5 6 6 . 9 Melee 3 | . . . . . . 3 Guns 25 | . 8 5 6 6 . . AOE 6 | . . . . . . 6 Classes Destroyed 10 | . 5 . 2 . . 3 Worker 1 | . . . . . . 1 Builder 3 | . 1 . . . . 2 Tunneler 1 | . . . . . . 1 Hauler 1 | . 1 . . . . . Recycler 1 | . . . 1 . . . Watcher 2 | . 1 . 1 . . . Swarmer 9 | . 3 3 . 3 . . Grunt 22 | . 5 2 4 3 . 8 Duelist 1 | . . . . . . 1 Sentry 2 | . . . 2 . . . Best Kill Streak 4 | . 2 2 3 3 . 4 Combat Bots Only 3 | . 2 2 3 3 . 3 Max Kills in Single Turn 2 | . 1 1 1 1 . 2 Gunslinging . | . . . . . . . Exploded 1 | . . . . . . 1 Melee 1 | . . . . . . 1 Uniques/NPCs Destroyed . | . . . . . . . Combat | -11 -10 -10 -9 -9 -9 -8 -------- Run | Yrd Mat Min Mat Min Exi Min Hostile Shots Fired 204 | . 25 36 26 44 . 73 Missed 51 | . 7 9 6 11 . 18 Hits 153 | . 18 27 20 33 . 55 Melee 9 | . . . . . . 9 Projectile 144 | . 18 27 20 33 . 46 Critical Strikes 4 | . . 1 . . . 3 Damage Taken 2199 | . 180 245 253 353 . 1168 Core 523 | . 59 52 44 44 . 324 Absorbed by Shields . | . . . . . . . Core Remaining (%) 77 | 100 . 55 . . . . Volleys Fired 124 | . 36 14 23 35 . 16 Largest 2 | . 2 2 2 2 . 2 Hottest 95 | . 70 70 85 85 . 95 Shots Fired 230 | . 71 26 44 63 . 26 Gun 217 | . 71 26 44 63 . 13 Cannon . | . . . . . . . Launcher 13 | . . . . . . 13 Special . | . . . . . . . Kinetic 114 | . 36 12 23 35 . 8 Thermal 103 | . 35 14 21 28 . 5 Explosive 13 | . . . . . . 13 Electromagnetic . | . . . . . . . Robot Hit Streak 10 | . 10 9 9 10 . 10 Robot Miss Streak 4 | . 4 2 2 4 . 1 Penetration Max . | . . . . . . . Secondary Targets 2 | . . 1 . 1 . . Max Gunslinging Chain 1 | . . 1 . 1 . . Shots Hit Robots 159 | . 44 19 28 36 . 32 Core Hits 74 | . 19 8 12 11 . 24 Critical Kills 1 | . 1 . . . . . Critical Parts Destroyed . | . . . . . . . Critical Strikes 8 | . 2 1 2 . . 3 Burn 5 | . 1 1 2 . . 1 Destroy 1 | . 1 . . . . . Sever 2 | . . . . . . 2 Melee Attacks 17 | . . . . . . 17 Impact . | . . . . . . . Slashing 17 | . . . . . . 17 Piercing . | . . . . . . . Sneak Attacks 3 | . . . . . . 3 Combat Hostiles . | . . . . . . . Follow-up Attacks . | . . . . . . . Damage Inflicted 3299 | . 459 228 373 458 . 1781 Guns 1649 | . 459 228 373 458 . 131 Cannons . | . . . . . . . Explosions 1000 | . . . . . . 1000 Melee 632 | . . . . . . 632 Ramming 18 | . . . . . . 18 Kinetic 779 | . 174 90 199 248 . 68 Thermal 1002 | . 285 138 174 210 . 195 Explosive 868 | . . . . . . 868 Electromagnetic . | . . . . . . . Impact . | . . . . . . . Slashing 632 | . . . . . . 632 Piercing . | . . . . . . . Highest Corruption 4 | . . . . . . 4 Average Corruption 3 | . . . . . . 3 Corruption Purged . | . . . . . . . Corruption Blocked . | . . . . . . . Effects 2 | . . . . . . 2 Message Errors 1 | . . . . . . 1 Parts Rejected 1 | . . . . . . 1 Overload Shots . | . . . . . . . Overflow Damage 77 | . . . . . . 77 Projectiles . | . . . . . . . Explosions 3 | . . . . . . 3 Melee 74 | . . . . . . 74 Knockbacks . | . . . . . . . Impact . | . . . . . . . Kinetic . | . . . . . . . Secondary . | . . . . . . . Self-Inflicted Damage 124 | . . . . . . 124 Shots 5 | . . . . . . 5 Rammed 3 | . . . . . . 3 Targets Rammed 3 | . . . . . . 3 Kicked . | . . . . . . . Crushed . | . . . . . . . Highest Temperature 317 | . 124 136 186 317 . 267 Average Temperature 92 | . 41 55 76 153 . 110 Received Heat Transfer 816 | . 72 66 111 117 . 450 Effects 2 | . . . . 2 . . Interference 2 | . . . . 2 . . Siege Activations . | . . . . . . . Martial Activations . | . . . . . . . Shielding Activations . | . . . . . . . Robots Disrupted . | . . . . . . . Combat Hostiles . | . . . . . . . Robots Corrupted . | . . . . . . . Combat Hostiles . | . . . . . . . Parts Fried . | . . . . . . . Impact Corruptions . | . . . . . . . Robots Melted . | . . . . . . . Combat Hostiles . | . . . . . . . Parts Melted 3 | . 1 . 1 1 . . Heat Transferred 2851 | . 925 481 555 518 . 372 Parts Sabotaged . | . . . . . . . Parts Stolen . | . . . . . . . Parts Stripped . | . . . . . . . Power Chain Reactions . | . . . . . . . Alert | -11 -10 -10 -9 -9 -9 -8 ------- Run | Yrd Mat Min Mat Min Exi Min Maximum Alert Level . | . . . . . . . Low Security (%) 100 | 100 100 100 100 100 . 100 Level 1 . | . . . . . . . Level 2 . | . . . . . . . Level 3 . | . . . . . . . Level 4 . | . . . . . . . Level 5 . | . . . . . . . High Security . | . . . . . . . Max Security . | . . . . . . . Peak Influence 103 | . 60 90 103 50 . 98 Initial 34 | . . 19 19 34 . . Average 27 | . 19 25 52 27 . 29 Influence Increases 1004 | . 219 150 191 140 . 304 Destroy 0b10 Robot/C 680 | . 160 100 120 120 . 180 Destroy 0b10 Robot/NC 45 | . 15 . 10 . . 20 Destroy Leader 146 | . 44 20 32 20 . 30 Successful Hack 14 | . . . 14 . . . Disable Machine 30 | . . . 15 . . 15 Destroy Structure 59 | . . . . . . 59 Lose Combat Pursuer 30 | . . 30 . . . . Influence Decreases 991 | . 168 151 151 220 10 291 Entered New Map 129 | . . 32 31 56 10 . Time Decay 727 | . 158 109 120 140 . 200 Lost Part 135 | . 10 10 . 24 . 91 Squads Dispatched 5 | . 2 . 3 . . . Investigation 2 | . 1 . 1 . . . Extermination . | . . . . . . . Reinforcement 3 | . 1 . 2 . . . Assault . | . . . . . . . Garrison . | . . . . . . . Intercept . | . . . . . . . Searches Triggered . | . . . . . . . Construction Impeded . | . . . . . . . Haulers Reinforced . | . . . . . . . Active Scanning Responses . | . . . . . . . Cargo Convoy Interrupts . | . . . . . . . Stealth | -11 -10 -10 -9 -9 -9 -8 --------- Run | Yrd Mat Min Mat Min Exi Min Distress Signals 6 | . 2 . 3 . . 1 Communications Jammed . | . . . . . . . Distress Signals . | . . . . . . . Times Spotted 54 | . 17 7 12 6 . 12 Peak Tracking Total 4 | . 3 3 4 3 . 3 Tactical Retreats 1 | . . 1 . . . . Traps | -11 -10 -10 -9 -9 -9 -8 ------- Run | Yrd Mat Min Mat Min Exi Min Traps Triggered 4 | . 3 . 1 . . . Indirectly . | . . . . . . . Trap Hack Attempts . | . . . . . . . Triggered . | . . . . . . . Disarmed . | . . . . . . . Reprogrammed . | . . . . . . . Reused . | . . . . . . . Traps Extracted . | . . . . . . . Installed . | . . . . . . . Triggered . | . . . . . . . Machines | -11 -10 -10 -9 -9 -9 -8 ---------- Run | Yrd Mat Min Mat Min Exi Min Machines Disabled 2 | . . . 1 . . 1 Max in Single Turn 1 | . . . 1 . . 1 Machines Repaired . | . . . . . . . Machines Dismantled . | . . . . . . . Machines Sabotaged . | . . . . . . . Overloaded Fab Kills . | . . . . . . . Hacking | -11 -10 -10 -9 -9 -9 -8 --------- Run | Yrd Mat Min Mat Min Exi Min Machines Accessed 5 | . 1 . 2 . 2 . Terminals 3 | . 1 . 2 . . . Fabricators . | . . . . . . . Repair Stations . | . . . . . . . Recycling Units . | . . . . . . . Scanalyzers . | . . . . . . . Garrison Access . | . . . . . . . Total Hacks 10 | . 3 . 5 . 2 . Successful 4 | . . . 2 . 2 . Failed 6 | . 3 . 3 . . . Catastrophic 2 | . 1 . 1 . . . Database Lockouts . | . . . . . . . Manual 4 | . 3 . . . 1 . Terminals 8 | . 3 . 5 . . . Fabricators . | . . . . . . . Repair Stations . | . . . . . . . Recycling Units . | . . . . . . . Scanalyzers . | . . . . . . . Garrison Access . | . . . . . . . Terminal Hacks 4 | . . . 2 . 2 . Record 1 | . . . . . 1 . Branch Access Points 1 | . . . 1 . . . Surveillance Status 1 | . . . 1 . . . Proto ID Catalog 1 | . . . . . 1 . Fabricator Hacks . | . . . . . . . Repair Station Hacks . | . . . . . . . Recycling Unit Hacks . | . . . . . . . Scanalyzer . | . . . . . . . Garrison Access Hacks . | . . . . . . . Unauthorized Hacks . | . . . . . . . Terminals . | . . . . . . . Fabricators . | . . . . . . . Repair Stations . | . . . . . . . Recycling Units . | . . . . . . . Scanalyzers . | . . . . . . . Garrison Access . | . . . . . . . Data Cores Recovered . | . . . . . . . Used . | . . . . . . . Hacking Detections 2 | . 1 . 1 . . . Full Trace Events 1 | . . . 1 . . . Feedback Events . | . . . . . . . Feedback Blocked . | . . . . . . . Robot Schematics Acquired . | . . . . . . . Robots Built . | . . . . . . . Authchips . | . . . . . . . Time . | . . . . . . . Total Robot Build Rating . | . . . . . . . Part Schematics Acquired . | . . . . . . . Parts Built . | . . . . . . . Authchips . | . . . . . . . Time . | . . . . . . . Total Part Build Rating . | . . . . . . . Part Studies Acquired . | . . . . . . . Parts Repaired . | . . . . . . . Time . | . . . . . . . Parts Recycled . | . . . . . . . Recycled Matter . | . . . . . . . Retrieved Matter . | . . . . . . . Retrieved Components . | . . . . . . . Parts Scanalyzed . | . . . . . . . Part Schematics Acquired . | . . . . . . . Parts Damaged . | . . . . . . . Bothacking | -11 -10 -10 -9 -9 -9 -8 ------------ Run | Yrd Mat Min Mat Min Exi Min Used RIF Installer . | . . . . . . . Robots Hacked . | . . . . . . . Non-combat . | . . . . . . . Combat . | . . . . . . . Robot Hacks Applied . | . . . . . . . Relay Couplers Released . | . . . . . . . Fabnet Peak Effective % . | . . . . . . . Robots Rewired . | . . . . . . . Allies Hacked . | . . . . . . . Hacks Repelled . | . . . . . . . Allies | -11 -10 -10 -9 -9 -9 -8 -------- Run | Yrd Mat Min Mat Min Exi Min Total Allies 1 | . . 1 . . . . Largest Group 1 | . . 1 . . . . Highest-Rated Group 31 | . . 31 . . . . Highest-Rated Ally 31 | . . 31 . . . . Total Orders . | . . . . . . . Ally Attacks . | . . . . . . . Total Damage . | . . . . . . . Kills . | . . . . . . . Allies Corrupted . | . . . . . . . Allies Melted . | . . . . . . . Intel | -11 -10 -10 -9 -9 -9 -8 ------- Run | Yrd Mat Min Mat Min Exi Min Active Infowar (turns) 573 | . . . . . . 573 Terrain 1 | . . . . . . 1 Structural 572 | . . . . . . 572 Machine Analysis 214 | . . . . . . 214 Robot Analysis Total . | . . . . . . . Derelict Logs Recovered 1 | . . 1 . . . . Drone Launches . | . . . . . . . Drone Recoveries . | . . . . . . . Exploration | -11 -10 -10 -9 -9 -9 -8 ------------- Run | Yrd Mat Min Mat Min Exi Min Turns Passed 2885 | 74 517 586 250 281 522 655 Spaces Moved 1857 | 64 386 343 148 139 326 451 Core 16 | 9 . . . 1 . 6 Treads 577 | . . . . 35 326 216 Legs 385 | . . 134 148 103 . . Wheels 870 | 55 386 209 . . . 220 Hover . | . . . . . . . Flight 9 | . . . . . . 9 Fastest Speed 50 | 50 100 100 120 100 160 57 Average Speed 120 | 92 100 107 120 129 160 118 Slowest Speed 160 | 100 100 120 120 160 160 160 Overloaded Moves . | . . . . . . . Propulsion Burnouts . | . . . . . . . Robots Hopped . | . . . . . . . Potential Cave-ins . | . . . . . . . Cave-ins Triggered . | . . . . . . . Exploration Rate (%) 44 | 4 52 63 21 31 75 64 Regions Visited 6 Branch Regions 4 Pre-discovered Areas 1 | . . . . . 1 . Known Exits Taken 1 | . . . 1 . . . Unknown Exits Taken 5 | 1 1 1 . 1 1 . Scrap Searched 1 | . . . . . . 1 Spaces Dug . | . . . . . . . Terrain Destroyed 81 | . . . . . . 81 Melee . | . . . . . . . Projectile . | . . . . . . . AOE 81 | . . . . . . 81 Terrain Rammed . | . . . . . . . Walls Destroyed . | . . . . . . . Machines Disabled . | . . . . . . . Actions | -11 -10 -10 -9 -9 -9 -8 --------- Run | Yrd Mat Min Mat Min Exi Min Total 2263 | 75 451 535 175 177 327 523 Wait 202 | . 19 170 1 . . 12 Move 1851 | 63 385 342 147 138 325 451 Hop . | . . . . . . . Pick Up 16 | 6 3 1 . 2 1 3 Fast Attach 19 | 6 6 2 1 . . 4 Attach 16 | . . 1 1 2 1 11 Detach 2 | . . . . . . 2 Swap 6 | . . 2 2 . . 2 Drop 7 | . 2 3 . . . 2 Fire 124 | . 36 14 23 35 . 16 Melee 17 | . . . . . . 17 Ram 3 | . . . . . . 3 Kick . | . . . . . . . Crush . | . . . . . . . Escape Stasis . | . . . . . . . Rewire . | . . . . . . . Trap . | . . . . . . . Miscellaneous . | . . . . . . . Route ------- -11/Scrapyard -10/Materials (discovered 2 exits: *Mat / [*Min]) -10/Mines -9/Materials (discovered 2 exits: *Min x2) -9/Mines -9/Exiles -8/Mines History --------- Turn | Location | Event 19 | -11/Scrapyard | Discovered new exit (range 14) 75 | -11/Scrapyard | Entered Materials 302 | -10/Materials | Build established: Mutant 414 | -10/Materials | Discovered new exit (range 15) 570 | -10/Materials | Discovered new exit (range 13) 592 | -10/Materials | Entered Mines 596 | -10/Mines | Learned Materials emergency access door positions 606 | -10/Mines | Received a Mining Laser from a helpful Derelict 714 | -10/Mines | Assembled infested the area 719 | -10/Mines | Assisted by a Guerilla fighting off Assembled 1153 | -10/Mines | Discovered new exit (range 5) 1178 | -10/Mines | Entered Materials 1178 | -9/Materials | Evolved 2 slots: Propulsion x1, Utility x1 1275 | -9/Materials | Build established: Scavenger-Mutant 1292 | -9/Materials | Identified exit to Mines 1428 | -9/Materials | Entered Mines 1647 | -9/Mines | Lost 3 parts (3n) 1703 | -9/Mines | Deemed a non-threat by the Exiles lab entrance 1703 | -9/Mines | Discovered new exit (range 5) 1709 | -9/Mines | Entered Exiles 1749 | -9/Exiles | Met 8R-AWN 1777 | -9/Exiles | Met EX-HEX 1820 | -9/Exiles | Met EX-BIN 1839 | -9/Exiles | Aligned with FarCom system 1841 | -9/Exiles | Given EX-Vault access code 1889 | -9/Exiles | Opened EX-Vault 1895 | -9/Exiles | Build established: Mutant 1898 | -9/Exiles | Found Longsword +1 1931 | -9/Exiles | Warned to stay clear of 0b10 Research branches 1982 | -9/Exiles | Met EX-DEC 1993 | -9/Exiles | Learned location of Zion (-7) 2080 | -9/Exiles | Visited The Gauntlet 2215 | -9/Exiles | Discovered new exit (range 11) 2231 | -9/Exiles | Left Exiles lab with Longsword +1 2231 | -9/Exiles | Entered Mines 2274 | -8/Mines | Lost 6 parts (1p1n2u2w) 2824 | -8/Mines | Lost 4 parts (1p1n2w) 2867 | -8/Mines | Core integrity fell below 50% 2882 | -8/Mines | Core integrity fell below 20% 2886 | -8/Mines | Destroyed by L-31 Rogue with Katana Last Messages --------------- 02828_ Sneak attack on U-05 Engineer. 02828_ U-05 Engineer destroyed. 02830_ Acquired 52 matter. 02830_ K-01 Serf collects debris. 02831_ Sneak attack on K-01 Serf. 02831_ Destroyed Wheel. 02832_ K-01 Serf collects debris. 02837_ Acquired 38 matter. 02839_ K-01 Serf collects debris. 02851_ System corrupted: Ion Engine rejected. 02851_ Acquired Ion Engine. 02851_ C-30 ARC bursts open, deploying its payload. 02851_ L-31 Rogue unfolds itself. 02851_ G-47 Trooper unfolds itself. 02855_ Wheel destroyed. 02866_ Aluminum Leg severed. 02877_ Lgt. Treads destroyed. 02880_ L-31 Rogue Imp. Ion Engine severed. 02883_ Ion Engine destroyed. Map ----- +----------------------------------------------------+ | | | | | ???????????????????????????????????????????????? | | ???????????????????????????????????????????????? | | ???????????????????????????????????????????????? | | ???????????????????????????????????????????????? | | ???????????????????????????????????????????????? | | ???????????????????????????????????????????????? | | ??????????????????????????????####?????????????? | | ?????????????????????????????######????????????? | | ?????????????????????????????## ###???????????? | | ???????????????????????????### ##???????????? | | ???????????????????????????### #???????????? | | ???????????????????????????## ??????????????? | | ???????????????????????????## ??????????????? | | ???????????????????????????## " ??????????????? | | ???????????????????????????##"%# ??????????????? | | ???????????????????????????## "##??????????????? | | ?????????????????????????? ##??????????????? | | ?????????????????????????#### ###?????????????? | | ????????????????????????#### ###?????????????? | | ???????????????????????#### ##?????????????? | | ????????s??????????????### ##?????????????? | | ??????????ss?????######## ###????????????? | | ?????????????????########g ## ##????????????? | | ?????###?????????## @l #### ##????????????? | | ??#### ######?#### ####g##### ##????????????? | | ?## ## ###### ########## ##????????????? | | ?# ### ######?# ###????#######?? | | ?# # %[ ###?????# ? ######### | | ??# ## = ########## ###?######"#"#### | | ???# ### ##################"# ## | | ???## #####[ = #### #######?### # | | ???## #######=# ### ######## ## | | ???## #### # ### ####### ## | | ????## ### ! ### #### # | | ????### =#### ##### | | ????### #### ############ | | ??#### !## # """ #######?##### ## ## | | ??#### # """ ##????????#### ####### | | ??## ### """ ##?????????#### ## ## | | ??## ## = ##??????????### #### # | | ??## #### ###???????????## ###### | | ??## # # ######???????????## ###### ### | | ??### = ## #######??????????## ##??### #### | | ??### ## ####### ??? ##??## ##??######### | | ???## ! # ### ##??## ##???######?# | | ???## ## ### ##??## ##??????????# | | ???## #### ### #### ##??## ##??????????# | | ???########### ### ###### ###??## ##??????????? | +----------------------------------------------------+ Best States ------------- Heat Dissipation 28 Energy Generation 14 Energy Capacity 250 Matter Stores 300 Matter Capacity 300 Sight Range 16 Terrain Scan Density 10 Additional Mass Support 6 Armor Coverage 150 Evasion (%) 55 Recoil Reduction 2 Item Schematics ----------------- None Robot Schematics ------------------ None Fabricated ------------ Nothing Repaired ---------- Nothing Studied --------- None Alien Tech Used ----------------- None Achievements -------------- None Challenges ------------ None Game ------ Seed ChargeDecoyFalx Manual? 0 Play Time 00:22:03 Cumulative 38.4 hours Start 2026.07.18 @ 11:18:40 End 2026.07.18 @ 11:39:09 Sessions 1 Manual Loads 0 Difficulty Rogue Special Mode None Game No. 56 Rogue 56 Adventurer 0 Explorer 0 Win Type - Total 1 Types 1/0/0/0/0/0/0/0/0/0 Lore% 30 Gallery% 32 Achievement% 24 Wizard Run 0 Options --------- Layout 1 ASCII 0 Keyboard 0 Movement Mouse Keybinds 0 Fullscreen 1 Font 20/SmallcapsGlow Map View 50x35 Zoom Use 0% Tactical HUD 1 Map Filters NONE Filters NONE Steam 1 RUN: de8a7cd9-12bd-4187-b703-c15aa717aa15